fUST/lending_fUST_20250313
["ID","MTS","AMOUNT","RATE_DAILY","PERIOD"]
[356039656,1741812657037,-220.152077,0.00022465,7]
[356039657,1741812657046,-500.0,0.00022465,2]
[356039658,1741812657055,-500.0,0.00022465,2]
[356039659,1741812657066,-181.977683,0.00022465,7]
[356039660,1741812657075,-673.09,0.00022465,2]
[356039661,1741812657085,-500.0,0.00022465,2]
[356039662,1741812657094,-181.977683,0.00022465,7]
[356039663,1741812657104,-220.152077,0.00022465,7]
[356039664,1741812657114,-220.152077,0.00022465,7]
[356039665,1741812657123,-500.0,0.00022465,2]
[356039666,1741812657133,-500.0,0.00022465,2]
[356039667,1741812657290,-181.977683,0.00022465,7]
[356039668,1741812657300,-181.977683,0.00022465,7]
[356039669,1741812657310,-205.41563832,0.00022465,2]
[356039670,1741812657319,-150.36,0.00022465,2]
[356039671,1741812657329,-150.36,0.00022465,2]
[356039672,1741812657338,-150.36,0.00022465,2]
[356039673,1741812657347,-1167.95,0.00022465,2]
[356039674,1741812657357,-152.61740648,0.00022465,2]
[356039675,1741812657366,-509.94627412,0.00022465,2]
[356039676,1741812657375,-500.0,0.00022465,2]
[356039677,1741812657384,-500.0,0.00022465,2]
[356039678,1741812657394,-17841.71,0.00022465,2]
[356039679,1741812657403,-150.36,0.00022465,2]
[356039680,1741812657412,-150.36,0.00022465,2]
[356039681,1741812657421,-150.36,0.00022465,2]
[356039682,1741812657431,-150.36,0.00022465,2]
[356039683,1741812657441,-150.36,0.00022465,2]
[356039684,1741812657450,-5963.29,0.00022465,2]
[356039685,1741812657459,-248.2,0.00022465,2]
[356039686,1741812657469,-500.0,0.00022465,2]
[356039687,1741812657479,-1427.84,0.00022465,2]
[356039688,1741812657488,-500.0,0.00022465,2]
[356039689,1741812657498,-151.0,0.00022465,7]
[356039690,1741812657508,-1065.45,0.00022465,2]
[356039691,1741812657517,-500.0,0.00022465,2]
[356039692,1741812657527,-2321.42,0.00022465,2]
[356039693,1741812657536,-500.0,0.00022465,2]
[356039694,1741812657547,-500.0,0.00022465,2]
[356039695,1741812657556,-500.0,0.00022465,2]
[356039696,1741812657565,-500.0,0.00022465,2]
[356039697,1741812657575,-200.0,0.00022465,2]
[356039698,1741812657585,-500.0,0.00022465,2]
[356039699,1741812657594,-500.0,0.00022465,2]
[356039700,1741812657603,-1286.5,0.00022465,2]
[356039701,1741812657627,-500.0,0.00022465,2]
[356039702,1741812657638,-1307.9,0.00022465,2]
[356039703,1741812657648,-500.0,0.00022465,2]
[356039704,1741812657659,-500.0,0.00022465,2]
[356039705,1741812657670,-500.0,0.00022465,2]
[356039706,1741812657681,-500.0,0.00022465,2]
[356039707,1741812657691,-500.0,0.00022465,2]
[356039708,1741812657701,-4444.89,0.00022465,2]
[356039709,1741812657711,-515.77695533,0.00022465,2]
[356039710,1741812657721,-500.0,0.00022465,2]
[356039711,1741812657732,-500.0,0.00022465,2]
[356039712,1741812657742,-591.64,0.00022465,2]
[356039713,1741812657752,-151.0,0.00022465,7]
[356039714,1741812657762,-151.0,0.00022465,7]
[356039715,1741812657773,-500.0,0.00022465,2]
[356039716,1741812657784,-500.0,0.00022465,2]
[356039717,1741812657794,-500.0,0.00022465,2]
[356039718,1741812657804,-500.0,0.00022465,2]
[356039719,1741812657814,-500.0,0.00022465,2]
[356039720,1741812657824,-500.0,0.00022465,2]
[356039721,1741812657834,-500.0,0.00022465,2]
[356039722,1741812657844,-500.0,0.00022465,2]
[356039723,1741812657854,-2579.06,0.00022465,2]
[356039724,1741812657864,-847.83,0.00022465,2]
[356039725,1741812657874,-500.0,0.00022465,2]
[356039726,1741812657884,-500.0,0.00022465,2]
[356039727,1741812657894,-500.0,0.00022465,2]
[356039728,1741812657905,-7177.76,0.00022465,2]
[356039729,1741812657915,-423.70646891,0.00022465,2]
[356039730,1741812657926,-968.41,0.00022465,2]
[356039731,1741812657936,-500.0,0.00022465,2]
[356039732,1741812657946,-697.84,0.00022465,2]
[356039733,1741812657956,-500.0,0.00022465,2]
[356039734,1741812657966,-737.21,0.00022465,2]
[356039735,1741812657976,-1000.0,0.00022465,7]
[356039736,1741812657986,-500.0,0.00022465,2]
[356039737,1741812657996,-10986.97,0.00022465,2]
[356039738,1741812658007,-500.0,0.00022465,2]
[356039739,1741812658019,-500.0,0.00022465,2]
[356039740,1741812658031,-500.0,0.00022465,2]
[356039741,1741812658041,-500.0,0.00022465,2]
[356039742,1741812658051,-501.02,0.00022465,2]
[356039743,1741812658061,-500.0,0.00022465,2]
[356039744,1741812658071,-514.82135152,0.00022465,2]
[356039745,1741812658081,-500.0,0.00022465,2]
[356039746,1741812658091,-1084.33,0.00022465,2]
[356039747,1741812658101,-778.01,0.00022465,2]
[356039748,1741812658110,-3477.78,0.00022465,2]
[356039749,1741812658120,-500.0,0.00022465,2]
[356039750,1741812658130,-500.0,0.00022465,2]
[356039751,1741812658141,-151.0,0.00022465,7]
[356039752,1741812658150,-151.0,0.00022465,7]
[356039753,1741812658160,-500.0,0.00022465,2]
[356039754,1741812658170,-484.49440179,0.00022465,2]
[356039755,1741812658180,-986.1,0.00022465,2]
[356039756,1741812658190,-2234.82,0.00022465,2]
[356039757,1741812658200,-500.0,0.00022465,2]
[356039758,1741812658211,-500.0,0.00022465,2]
[356039759,1741812658227,-500.0,0.00022465,2]
[356039760,1741812658238,-1660.26,0.00022465,2]
[356039761,1741812658248,-434.81598272,0.00022465,2]
[356039762,1741812658260,-2040.4,0.00022465,2]
[356039763,1741812658270,-355.54030018,0.00022465,2]
[356039764,1741812658281,-500.0,0.00022465,2]
[356039765,1741812658294,-500.0,0.00022465,2]
[356039766,1741812658304,-1145.86,0.00022465,2]
[356039767,1741812658315,-500.0,0.00022465,2]
[356039768,1741812658325,-722.09,0.00022465,2]
[356039769,1741812658335,-500.0,0.00022465,2]
[356039770,1741812658345,-500.0,0.00022465,2]
[356039771,1741812658355,-1385.76,0.00022465,2]
[356039772,1741812658366,-1340.29,0.00022465,2]
[356039773,1741812658377,-500.0,0.00022465,2]
[356039774,1741812658387,-7057.65,0.00022465,2]
[356039775,1741812658397,-500.0,0.00022465,2]
[356039776,1741812658407,-500.0,0.00022465,2]
[356039777,1741812658417,-884.53,0.00022465,2]
[356039778,1741812658428,-500.0,0.00022465,2]
[356039779,1741812658438,-500.0,0.00022465,2]
[356039780,1741812658448,-500.0,0.00022465,2]
[356039781,1741812658459,-500.0,0.00022465,2]
[356039782,1741812658469,-500.0,0.00022465,2]
[356039783,1741812658480,-1243.39,0.00022465,2]
[356039784,1741812658490,-500.0,0.00022465,2]
[356039785,1741812658500,-500.0,0.00022465,2]
[356039786,1741812658511,-161.58520475,0.00022465,2]
[356039787,1741812658521,-160.72015635,0.00022465,2]
[356039788,1741812658533,-2854.903074,0.00022465,7]
[356039789,1741812658543,-500.0,0.00022465,2]
[356039790,1741812658554,-2854.903074,0.00022465,7]
[356039791,1741812658564,-634.96,0.00022465,2]
[356039792,1741812658574,-150.36,0.00022465,2]
[356039793,1741812658584,-828.39,0.00022465,2]
[356039794,1741812658594,-150.36,0.00022465,2]
[356039795,1741812658604,-199.35814789,0.00022465,2]
[356039796,1741812658613,-465.28335422,0.00022465,2]
[356039797,1741812658624,-353.751824,0.00022465,7]
[356039798,1741812658634,-353.751824,0.00022465,7]
[356039799,1741812658644,-175.0,0.00022465,2]
[356039800,1741812658654,-500.0,0.00022465,2]
[356039801,1741812658665,-500.0,0.00022465,2]
[356039802,1741812658675,-2854.903074,0.00022465,7]
[356039803,1741812658685,-2110.0,0.00022465,2]
[356039804,1741812658695,-2110.0,0.00022465,2]
[356039805,1741812658705,-2110.0,0.00022465,2]
[356039806,1741812658715,-2110.0,0.00022465,2]
[356039807,1741812658725,-2110.0,0.00022465,2]
[356039808,1741812658735,-2854.903074,0.00022465,7]
[356039809,1741812658751,-2110.0,0.00022465,2]
[356039810,1741812658761,-2110.0,0.00022465,2]
[356039811,1741812658770,-2110.0,0.00022465,2]
[356039812,1741812658781,-2110.0,0.00022465,2]
[356039813,1741812658791,-500.0,0.00022465,2]
[356039814,1741812658801,-500.0,0.00022465,2]
[356039815,1741812658811,-2110.0,0.00022465,2]
[356039816,1741812658821,-353.751824,0.00022465,7]
[356039817,1741812658831,-2110.0,0.00022465,2]
[356039818,1741812658842,-353.751824,0.00022465,7]
[356039819,1741812658851,-2110.0,0.00022465,2]
[356039820,1741812658864,-500.0,0.00022465,2]
[356039821,1741812658874,-2110.0,0.00022465,2]
[356039822,1741812658884,-2110.0,0.00022465,2]
[356039823,1741812658894,-2110.0,0.00022465,2]
[356039824,1741812658904,-292.490374,0.00022465,7]
[356039825,1741812658914,-2110.0,0.00022465,2]
[356039826,1741812658924,-292.490374,0.00022465,7]
[356039827,1741812658933,-2110.0,0.00022465,2]
[356039828,1741812658943,-2110.0,0.00022465,2]
[356039829,1741812658954,-2110.0,0.00022465,2]
[356039830,1741812658964,-2113.94285347,0.00022465,2]
[356039831,1741812658974,-500.0,0.00022465,2]
[356039832,1741812658984,-507.56381159,0.00022465,2]
[356039833,1741812658993,-699.94012858,0.00022465,2]
[356039834,1741812659003,-150.36,0.00022465,2]
[356039835,1741812659013,-292.490374,0.00022465,7]
[356039836,1741812659024,-500.0,0.00022465,2]
[356039837,1741812659034,-500.0,0.00022465,2]
[356039838,1741812659044,-5064.97,0.00022465,2]
[356039839,1741812659054,-292.490374,0.00022465,7]
[356039840,1741812659065,-500.0,0.00022465,2]
[356039841,1741812659074,-500.0,0.00022465,2]
[356039842,1741812659084,-500.0,0.00022465,2]
[356039843,1741812659094,-500.0,0.00022465,2]
[356039844,1741812659104,-500.0,0.00022465,2]
[356039845,1741812659114,-500.0,0.00022465,2]
[356039846,1741812659124,-500.0,0.00022465,2]
[356039847,1741812659134,-2290.97,0.00022465,2]
[356039848,1741812659144,-500.0,0.00022465,2]
[356039849,1741812659154,-500.0,0.00022465,2]
[356039850,1741812659164,-500.0,0.00022465,2]
[356039851,1741812659174,-500.0,0.00022465,2]
[356039852,1741812659183,-500.0,0.00022465,2]
[356039853,1741812659193,-500.0,0.00022465,2]
[356039854,1741812659203,-500.0,0.00022465,2]
[356039855,1741812659214,-500.0,0.00022465,2]
[356039856,1741812659225,-541.37025594,0.00022465,2]
[356039857,1741812659235,-4862.11,0.00022465,2]
[356039858,1741812659245,-393.0,0.00022466,2]
[356039859,1741812659255,-500.0,0.00022473,2]
[356039860,1741812659265,-500.0,0.00022473,2]
[356039861,1741812659275,-500.0,0.00022473,2]
[356039862,1741812659285,-500.0,0.00022473,2]
[356039863,1741812659297,-500.0,0.00022473,2]
[356039864,1741812659307,-500.0,0.00022473,2]
[356039865,1741812659317,-548.86546505,0.00022473,2]
[356039866,1741812659327,-500.0,0.00022473,2]
[356039867,1741812659337,-225.92834623,0.00022473,2]
[356039868,1741812659347,-485.33174382,0.00022473,2]
[356039869,1741812659356,-500.0,0.00022473,2]
[356039870,1741812659366,-500.0,0.00022473,2]
[356039871,1741812659376,-500.0,0.00022473,2]
[356039872,1741812659386,-313.62809527,0.00022473,2]
[356039873,1741812659395,-500.0,0.00022473,2]
[356039874,1741812659405,-501.26208016,0.00022473,2]
[356039875,1741812659415,-300.0,0.00022473,2]
[356039876,1741812659425,-500.0,0.00022473,2]
[356039877,1741812659435,-500.0,0.00022473,2]
[356039878,1741812659446,-500.0,0.00022473,2]
[356039879,1741812659456,-554.78706975,0.00022473,2]
[356039880,1741812659466,-315.14321334,0.00022473,2]
[356039881,1741812659476,-166.97971497,0.00022473,2]
[356039882,1741812659486,-189.8435304,0.00022473,2]
[356039883,1741812659497,-416.75644841,0.00022473,2]
[356039884,1741812659507,-500.0,0.00022473,2]
[356039885,1741812659519,-500.0,0.00022473,2]
[356039886,1741812659532,-500.0,0.00022473,2]
[356039887,1741812659542,-599.82939063,0.00022473,2]
[356039888,1741812659552,-506.25661435,0.00022473,2]
[356039889,1741812659562,-500.0,0.00022473,2]
[356039890,1741812659572,-500.0,0.00022473,2]
[356039891,1741812659582,-500.0,0.00022473,2]
[356039892,1741812659592,-392.18404094,0.00022473,2]
[356039893,1741812659821,-612.48701335,0.00022473,2]
[356039894,1741812659832,-500.0,0.00022473,2]
[356039895,1741812659842,-230.31197625,0.00022473,2]
[356039896,1741812659852,-500.0,0.00022473,2]
[356039897,1741812659865,-285.69642306,0.00022473,2]
[356039898,1741812659874,-500.0,0.00022473,2]
[356039899,1741812659884,-500.0,0.00022473,2]
[356039900,1741812659893,-500.0,0.00022473,2]
[356039901,1741812659903,-500.0,0.00022473,2]
[356039902,1741812659918,-500.0,0.00022473,2]
[356039903,1741812659935,-500.0,0.00022473,2]
[356039904,1741812659949,-371.84928285,0.00022473,2]
[356039905,1741812659960,-500.0,0.00022473,2]
[356039906,1741812659969,-500.0,0.00022473,2]
[356039907,1741812659980,-500.0,0.00022473,2]
[356039908,1741812659989,-603.1910099,0.00022473,2]
[356039909,1741812659999,-500.0,0.00022473,2]
[356039910,1741812660009,-500.0,0.00022473,2]
[356039911,1741812660019,-500.0,0.00022473,2]
[356039912,1741812660030,-500.0,0.00022473,2]
[356039913,1741812660040,-500.0,0.00022473,2]
[356039914,1741812660050,-500.0,0.00022473,2]
[356039915,1741812660060,-500.0,0.00022473,2]
[356039916,1741812660070,-500.0,0.00022473,2]
[356039917,1741812660080,-500.0,0.00022473,2]
[356039918,1741812660089,-500.0,0.00022473,2]
[356039919,1741812660098,-500.0,0.00022473,2]
[356039920,1741812660108,-500.0,0.00022473,2]
[356039921,1741812660117,-200.009412,0.00022473,2]
[356039922,1741812660127,-151.0,0.00022473,7]
[356039923,1741812660136,-151.0,0.00022473,7]
[356039924,1741812660146,-151.0,0.00022473,7]
[356039925,1741812660155,-151.0,0.00022473,7]
[356039926,1741812660165,-151.0,0.00022473,7]
[356039927,1741812660175,-729.71021274,0.00022478,2]
[356039928,1741812660184,-157.16136036,0.00022493,2]
[356039929,1741812660193,-13141.79944467,0.00022512,2]
[356039930,1741812660204,-151.0,0.00022512,7]
[356039931,1741812660215,-151.0,0.00022512,7]
[356039932,1741812660226,-151.0,0.00022512,7]
[356039933,1741812660236,-151.0,0.00022512,7]
[356039934,1741812660246,-5132.5661977,0.00022552,2]
[356039935,1741812660258,-2431.36371558,0.00022659,3]
[356039936,1741812660267,-151.0,0.00022738,7]
[356039937,1741812660278,-151.0,0.00022738,7]
[356039938,1741812660288,-151.0,0.00022738,7]
[356039939,1741812660299,-151.0,0.00022738,7]
[356039940,1741812660308,-295.134134,0.00022738,7]
[356039941,1741812660318,-151.0,0.00022738,7]
[356039942,1741812660327,-151.0,0.00022738,7]
[356039943,1741812660342,-151.0,0.00022738,7]
[356039944,1741812660353,-662.187127,0.00022738,7]
[356039945,1741812660363,-662.187127,0.00022738,7]
[356039946,1741812660372,-388.013246,0.00022738,7]
[356039947,1741812660386,-388.013246,0.00022738,7]
[356039948,1741812660396,-500.0,0.00022739,2]
[356039949,1741812660406,-500.0,0.00022739,2]
[356039950,1741812660415,-500.0,0.00022739,2]
[356039951,1741812660426,-500.0,0.00022739,2]
[356039952,1741812660435,-511.25787417,0.00022739,2]
[356039953,1741812660446,-500.0,0.00022739,2]
[356039954,1741812660456,-500.0,0.00022739,2]
[356039955,1741812660465,-500.0,0.00022739,2]
[356039956,1741812660475,-500.0,0.00022739,2]
[356039957,1741812660485,-500.0,0.00022739,2]
[356039958,1741812660496,-653.19,0.00022739,2]
[356039959,1741812660506,-500.0,0.00022739,2]
[356039960,1741812660516,-151.930361,0.00022739,7]
[356039961,1741812660528,-500.0,0.00022739,2]
[356039962,1741812660540,-500.0,0.00022739,2]
[356039963,1741812660557,-940.2,0.00022739,2]
[356039964,1741812660567,-558.38852288,0.00022739,2]
[356039965,1741812660578,-300.0,0.00022739,2]
[356039966,1741812660588,-500.0,0.00022739,2]
[356039967,1741812660599,-500.0,0.00022739,2]
[356039968,1741812660610,-520.04526823,0.00022739,2]
[356039969,1741812660621,-500.0,0.00022739,2]
[356039970,1741812660631,-500.0,0.00022739,2]
[356039971,1741812660643,-513.07621032,0.00022739,2]
[356039972,1741812660652,-514.1262304,0.00022739,2]
[356039973,1741812660662,-1091.73,0.00022739,2]
[356039974,1741812660673,-500.0,0.00022739,2]
[356039975,1741812660684,-500.0,0.00022739,2]
[356039976,1741812660694,-151.0,0.00022739,7]
[356039977,1741812660703,-942.93,0.00022739,2]
[356039978,1741812660714,-500.0,0.00022739,2]
[356039979,1741812660723,-500.0,0.00022739,2]
[356039980,1741812660733,-415.73913894,0.00022739,2]
[356039981,1741812660743,-500.0,0.00022739,2]
[356039982,1741812660753,-246.91650077,0.00022739,2]
[356039983,1741812660762,-562.04,0.00022739,2]
[356039984,1741812660773,-500.0,0.00022739,2]
[356039985,1741812660782,-500.0,0.00022739,2]
[356039986,1741812660791,-500.0,0.00022739,2]
[356039987,1741812660802,-500.0,0.00022739,2]
[356039988,1741812660811,-684.79,0.00022739,2]
[356039989,1741812660821,-500.0,0.00022739,2]
[356039990,1741812660831,-500.0,0.00022739,2]
[356039991,1741812660840,-500.0,0.00022739,2]
[356039992,1741812660850,-500.0,0.00022739,2]
[356039993,1741812660859,-500.0,0.00022739,2]
[356039994,1741812660869,-500.0,0.00022739,2]
[356039995,1741812660878,-500.0,0.00022739,2]
[356039996,1741812660888,-151.0,0.00022739,7]
[356039997,1741812660903,-500.0,0.00022739,2]
[356039998,1741812660926,-500.0,0.00022739,2]
[356039999,1741812660947,-500.0,0.00022739,2]
[356040000,1741812660968,-500.0,0.00022739,2]
[356040001,1741812660987,-500.0,0.00022739,2]
[356040002,1741812661007,-244.09021737,0.00022739,2]
[356040003,1741812661028,-500.0,0.00022739,2]
[356040004,1741812661044,-500.0,0.00022739,2]
[356040005,1741812661064,-335.04563205,0.00022739,2]
[356040006,1741812661084,-500.0,0.00022739,2]
[356040007,1741812661100,-500.0,0.00022739,2]
[356040008,1741812661115,-500.0,0.00022739,2]
[356040009,1741812661133,-151.0,0.00022739,7]
[356040010,1741812661153,-500.0,0.00022739,2]
[356040011,1741812661172,-500.0,0.00022739,2]
[356040012,1741812661191,-500.0,0.00022739,5]
[356040013,1741812661204,-500.0,0.00022739,2]
[356040014,1741812661226,-500.0,0.00022739,2]
[356040015,1741812661244,-500.0,0.00022739,2]
[356040016,1741812661260,-500.0,0.00022739,2]
[356040017,1741812661282,-500.0,0.00022739,2]
[356040018,1741812661296,-500.0,0.00022739,2]
[356040019,1741812661314,-151.0,0.00022739,7]
[356040020,1741812661331,-845.05,0.00022739,2]
[356040021,1741812661350,-151.0,0.00022739,7]
[356040022,1741812661368,-500.0,0.00022739,2]
[356040023,1741812661385,-151.0,0.00022739,7]
[356040024,1741812661402,-500.0,0.00022739,2]
[356040025,1741812661419,-151.0,0.00022739,7]
[356040026,1741812661436,-151.0,0.00022739,7]
[356040027,1741812661452,-500.0,0.00022739,2]
[356040028,1741812661469,-151.0,0.00022739,7]
[356040029,1741812661486,-151.0,0.00022739,7]
[356040030,1741812661503,-500.0,0.00022739,2]
[356040031,1741812661521,-500.0,0.00022739,2]
[356040032,1741812661538,-500.0,0.00022739,2]
[356040033,1741812661554,-151.0,0.00022739,7]
[356040034,1741812661570,-151.0,0.00022739,7]
[356040035,1741812661586,-151.0,0.00022739,7]
[356040036,1741812661602,-151.0,0.00022739,7]
[356040037,1741812661617,-151.0,0.00022739,7]
[356040038,1741812661634,-151.0,0.00022739,7]
[356040039,1741812661650,-151.0,0.00022739,7]
[356040040,1741812661666,-500.0,0.00022739,2]
[356040041,1741812661682,-860.93,0.00022739,2]
[356040042,1741812661699,-579.28231291,0.00022739,2]
[356040043,1741812661715,-315.45195104,0.00022739,2]
[356040044,1741812661731,-500.0,0.00022739,2]
[356040045,1741812661747,-500.0,0.00022739,2]
[356040046,1741812661764,-500.0,0.00022739,2]
[356040047,1741812661780,-500.0,0.00022739,2]
[356040048,1741812661795,-151.0,0.00022739,7]
[356040049,1741812661812,-687.2,0.00022739,2]
[356040050,1741812661828,-500.0,0.00022739,2]
[356040051,1741812661842,-500.0,0.00022739,2]
[356040052,1741812661857,-514.1,0.00022739,2]
[356040053,1741812661877,-151.0,0.00022739,7]
[356040054,1741812661892,-929.88,0.00022739,2]
[356040055,1741812661908,-500.0,0.00022739,2]
[356040056,1741812661923,-500.0,0.00022739,2]
[356040057,1741812661938,-500.0,0.00022739,2]
[356040058,1741812661954,-946.27,0.00022739,2]
[356040059,1741812661969,-500.0,0.00022739,2]
[356040060,1741812661984,-500.0,0.00022739,2]
[356040061,1741812662000,-151.0,0.00022739,7]
[356040062,1741812662016,-500.0,0.00022739,2]
[356040063,1741812662034,-500.0,0.00022739,2]
[356040064,1741812662049,-500.0,0.00022739,2]
[356040065,1741812662065,-500.0,0.00022739,2]
[356040066,1741812662081,-500.0,0.00022739,2]
[356040067,1741812662097,-500.0,0.00022739,2]
[356040068,1741812662111,-500.0,0.00022739,2]
[356040069,1741812662129,-151.0,0.00022739,7]
[356040070,1741812662153,-151.0,0.00022739,7]
[356040071,1741812662181,-151.0,0.00022739,7]
[356040072,1741812662211,-500.0,0.00022739,2]
[356040073,1741812662237,-541.07370016,0.00022739,2]
[356040074,1741812662260,-500.0,0.00022739,2]
[356040075,1741812662278,-885.6,0.00022739,2]
[356040076,1741812662298,-500.0,0.00022739,2]
[356040077,1741812662317,-151.0,0.00022739,7]
[356040078,1741812662335,-193.000572,0.00022739,7]
[356040079,1741812662353,-500.0,0.00022739,2]
[356040080,1741812662370,-500.0,0.00022739,2]
[356040081,1741812662387,-197.332462,0.00022739,7]
[356040082,1741812662404,-197.332462,0.00022739,7]
[356040083,1741812662420,-500.0,0.00022739,2]
[356040084,1741812662437,-509.3358538,0.00022739,2]
[356040085,1741812662454,-197.332462,0.00022739,7]
[356040086,1741812662471,-197.332462,0.00022739,7]
[356040087,1741812662488,-500.0,0.00022739,2]
[356040088,1741812662503,-500.0,0.00022739,2]
[356040089,1741812662519,-500.0,0.00022739,2]
[356040090,1741812662536,-500.0,0.00022739,2]
[356040091,1741812662553,-500.0,0.00022739,2]
[356040092,1741812662563,-500.0,0.00022739,2]
[356040093,1741812662573,-500.0,0.00022739,2]
[356040094,1741812662583,-598.68595098,0.00022739,2]
[356040095,1741812662593,-329.453428,0.00022739,7]
[356040096,1741812662603,-329.453428,0.00022739,7]
[356040097,1741812662612,-500.0,0.00022739,2]
[356040098,1741812662622,-329.453428,0.00022739,7]
[356040099,1741812662632,-329.453428,0.00022739,7]
[356040100,1741812662643,-500.0,0.00022739,2]
[356040101,1741812662933,-500.0,0.00022739,2]
[356040102,1741812662965,-500.0,0.00022739,2]
[356040103,1741812662976,-274.44098617,0.00022739,2]
[356040104,1741812662986,-500.0,0.00022739,2]
[356040105,1741812662996,-1205.38,0.00022739,2]
[356040106,1741812663006,-500.0,0.00022739,2]
[356040107,1741812663016,-861.29,0.00022739,2]
[356040108,1741812663026,-517.64,0.00022739,2]
[356040109,1741812663036,-949.84,0.00022739,2]
[356040110,1741812663047,-500.0,0.00022739,2]
[356040111,1741812663057,-151.0,0.00022739,7]
[356040112,1741812663067,-500.0,0.00022739,2]
[356040113,1741812663077,-500.0,0.00022739,2]
[356040114,1741812663087,-151.0,0.00022739,7]
[356040115,1741812663097,-500.0,0.00022739,2]
[356040116,1741812663107,-955.96,0.00022739,2]
[356040117,1741812663117,-151.0,0.00022739,7]
[356040118,1741812663127,-151.0,0.00022739,7]
[356040119,1741812663138,-514.87,0.00022739,2]
[356040120,1741812663147,-511.27720669,0.00022739,2]
[356040121,1741812663158,-500.0,0.00022739,2]
[356040122,1741812663168,-502.29,0.00022739,2]
[356040123,1741812663178,-500.0,0.00022739,2]
[356040124,1741812663188,-500.0,0.00022739,2]
[356040125,1741812663199,-842.43,0.00022739,2]
[356040126,1741812663209,-500.0,0.00022739,2]
[356040127,1741812663222,-1009.18,0.00022739,2]
[356040128,1741812663232,-500.0,0.00022739,2]
[356040129,1741812663242,-500.0,0.00022739,2]
[356040130,1741812663252,-500.0,0.00022739,2]
[356040131,1741812663263,-151.0,0.00022739,7]
[356040132,1741812663274,-151.0,0.00022739,7]
[356040133,1741812663286,-151.0,0.00022739,7]
[356040134,1741812663299,-151.0,0.00022739,7]
[356040135,1741812663310,-500.0,0.00022739,2]
[356040136,1741812663320,-500.0,0.00022739,2]
[356040137,1741812663330,-151.0,0.00022739,7]
[356040138,1741812663340,-500.0,0.00022739,2]
[356040139,1741812663350,-500.0,0.00022739,2]
[356040140,1741812663359,-151.0,0.00022739,7]
[356040141,1741812663370,-500.0,0.00022739,2]
[356040142,1741812663380,-546.06,0.00022739,2]
[356040143,1741812663389,-582.30362288,0.00022739,2]
[356040144,1741812663399,-500.0,0.00022739,2]
[356040145,1741812663409,-500.0,0.00022739,2]
[356040146,1741812663419,-500.0,0.00022739,2]
[356040147,1741812663430,-234.128418,0.00022739,7]
[356040148,1741812663439,-500.0,0.00022739,2]
[356040149,1741812663449,-662.187127,0.00022739,7]
[356040150,1741812663459,-662.187127,0.00022739,7]
[356040151,1741812663468,-500.0,0.00022739,2]
[356040152,1741812663478,-495.89108934,0.00022739,2]
[356040153,1741812663488,-500.0,0.00022739,2]
[356040154,1741812663499,-500.0,0.00022739,2]
[356040155,1741812663508,-1051.09,0.00022739,2]